[Event "*** Biggest EVER Titled Tuesday"]
[Site "Chess.com"]
[Date "2018.04.17"]
[Round "5"]
[White "Blitzking4444"]
[Black "Bryakin_Mikhail"]
[Result "1/2-1/2"]
[WhiteElo "1972"]
[BlackElo "2604"]
[TimeControl "180+2"]
[EndTime "14:10:06 PDT"]
[Termination "Game drawn by repetition"]

1. e4 {[%clk 0:03:01.9]} 1... c5 {[%clk 0:02:58.9]} 2. Nf3 {[%clk 0:03:02.6]}
2... Nc6 {[%clk 0:03:00.4]} 3. Bb5 {[%clk 0:03:03.1]} 3... g6 {[%clk 0:03:01.1]}
4. Bxc6 {[%clk 0:03:04]} 4... dxc6 {[%clk 0:03:03]} 5. h3 {[%clk 0:03:04.2]}
5... Bg7 {[%clk 0:03:04.5]} 6. d3 {[%clk 0:03:05.7]} 6... Nh6 {[%clk 0:03:05]}
7. O-O {[%clk 0:03:05.9]} 7... f6 {[%clk 0:03:06.2]} 8. Be3 {[%clk 0:03:04.7]}
8... b6 {[%clk 0:03:07.6]} 9. a4 {[%clk 0:03:04.3]} 9... a5 {[%clk 0:03:08.5]}
10. Nbd2 {[%clk 0:03:03.9]} 10... Nf7 {[%clk 0:03:09.3]} 11. Nc4 {[%clk
0:03:03.2]} 11... e5 {[%clk 0:03:09.6]} 12. b4 {[%clk 0:03:03.2]} 12... axb4
{[%clk 0:03:06.1]} 13. a5 {[%clk 0:03:03.7]} 13... bxa5 {[%clk 0:03:07.5]} 14.
Bxc5 {[%clk 0:03:04.4]} 14... Be6 {[%clk 0:03:05.8]} 15. Nfd2 {[%clk 0:02:57.7]}
15... Bf8 {[%clk 0:03:03.8]} 16. Bb6 {[%clk 0:02:55.3]} 16... Qb8 {[%clk
0:03:04.8]} 17. Ra4 {[%clk 0:02:45.7]} 17... Nd6 {[%clk 0:03:03.9]} 18. Bxa5
{[%clk 0:02:22.3]} 18... Nxc4 {[%clk 0:02:50]} 19. Nxc4 {[%clk 0:02:23.2]} 19...
Qb5 {[%clk 0:02:50.1]} 20. Qa1 {[%clk 0:01:55.3]} 20... Bxc4 {[%clk 0:02:50.2]}
21. dxc4 {[%clk 0:01:49.1]} 21... Qxc4 {[%clk 0:02:52.1]} 22. Bb6 {[%clk
0:01:19.5]} 22... Rxa4 {[%clk 0:02:38.2]} 23. Qxa4 {[%clk 0:01:19.8]} 23... Kf7
{[%clk 0:02:39.5]} 24. Rd1 {[%clk 0:01:13.2]} 24... Be7 {[%clk 0:02:39.2]} 25.
Rd7 {[%clk 0:01:09.1]} 25... Re8 {[%clk 0:02:24]} 26. Qa7 {[%clk 0:01:07.7]}
26... Kf8 {[%clk 0:02:10.7]} 27. Rxe7 {[%clk 0:01:00.6]} 27... Rxe7 {[%clk
0:02:10.5]} 28. Bc5 {[%clk 0:01:01.6]} 28... Qe6 {[%clk 0:02:12]} 29. Bxb4
{[%clk 0:01:00.4]} 29... Kf7 {[%clk 0:02:13.1]} 30. Bxe7 {[%clk 0:00:56.8]}
30... Qxe7 {[%clk 0:02:15]} 31. Qa2+ {[%clk 0:00:41.7]} 31... Qe6 {[%clk
0:02:16]} 32. Qa7+ {[%clk 0:00:41.8]} 32... Qe7 {[%clk 0:02:17.4]} 33. Qa2+
{[%clk 0:00:41.9]} 33... Kg7 {[%clk 0:02:18.9]} 34. Qc4 {[%clk 0:00:39.9]} 34...
Qd6 {[%clk 0:02:19.6]} 35. Kh2 {[%clk 0:00:29]} 35... Kf8 {[%clk 0:02:18.1]} 36.
g3 {[%clk 0:00:20.1]} 36... Kg7 {[%clk 0:02:13.2]} 37. Kg2 {[%clk 0:00:21.1]}
37... f5 {[%clk 0:02:13.7]} 38. exf5 {[%clk 0:00:21.4]} 38... gxf5 {[%clk
0:02:15.6]} 39. Qh4 {[%clk 0:00:20.1]} 39... Qd5+ {[%clk 0:02:15.6]} 40. Kh2
{[%clk 0:00:20.9]} 40... Qe6 {[%clk 0:02:14.1]} 41. Qg5+ {[%clk 0:00:21.2]}
41... Kf7 {[%clk 0:02:14.3]} 42. Qh5+ {[%clk 0:00:22.2]} 42... Kg7 {[%clk
0:02:10.4]} 43. Qg5+ {[%clk 0:00:22.9]} 43... Kf8 {[%clk 0:02:11.5]} 44. Qh5
{[%clk 0:00:22.9]} 44... h6 {[%clk 0:02:09.5]} 45. g4 {[%clk 0:00:21.4]} 45...
fxg4 {[%clk 0:02:08]} 46. hxg4 {[%clk 0:00:22.1]} 46... Qf6 {[%clk 0:02:08.7]}
47. Kg2 {[%clk 0:00:20.7]} 47... Ke7 {[%clk 0:02:09.7]} 48. Qh3 {[%clk 0:00:12]}
48... Qf4 {[%clk 0:02:09.7]} 49. Qh4+ {[%clk 0:00:10.6]} 49... Ke6 {[%clk
0:02:09.1]} 50. Qh3 {[%clk 0:00:08.8]} 50... Qe4+ {[%clk 0:02:07.3]} 51. Kg1
{[%clk 0:00:09.3]} 51... Qe1+ {[%clk 0:02:05.7]} 52. Kg2 {[%clk 0:00:09.8]}
52... Qe4+ {[%clk 0:02:05.6]} 53. Kg1 {[%clk 0:00:10.6]} 53... Qf4 {[%clk
0:02:01.8]} 54. g5+ {[%clk 0:00:10.6]} 54... Qf5 {[%clk 0:01:56.7]} 55. Qxf5+
{[%clk 0:00:06.9]} 55... Kxf5 {[%clk 0:01:58.6]} 56. gxh6 {[%clk 0:00:08.3]}
56... Kg6 {[%clk 0:02:00.1]} 57. Kg2 {[%clk 0:00:05.7]} 57... Kxh6 {[%clk
0:02:01.3]} 58. Kf3 {[%clk 0:00:07]} 58... Kg5 {[%clk 0:02:02.9]} 59. Ke4 {[%clk
0:00:08.1]} 59... Kf6 {[%clk 0:02:04.4]} 60. f4 {[%clk 0:00:05.4]} 60... exf4
{[%clk 0:02:05.4]} 61. Kxf4 {[%clk 0:00:07.3]} 61... Ke6 {[%clk 0:02:07.3]} 62.
Ke4 {[%clk 0:00:08.7]} 62... Kd6 {[%clk 0:02:09.2]} 63. Kd4 {[%clk 0:00:10.1]}
63... Kc7 {[%clk 0:02:10.7]} 64. Kc5 {[%clk 0:00:11.2]} 64... Kd7 {[%clk
0:02:11.8]} 65. c3 {[%clk 0:00:07.7]} 65... Kc7 {[%clk 0:02:11.3]} 66. c4 {[%clk
0:00:07.3]} 66... Kb7 {[%clk 0:02:11]} 67. Kb4 {[%clk 0:00:03.5]} 67... Kb6
{[%clk 0:02:12.3]} 68. c5+ {[%clk 0:00:04.2]} 68... Kc7 {[%clk 0:02:13.5]} 69.
Ka5 {[%clk 0:00:04.8]} 69... Kb7 {[%clk 0:02:13.4]} 70. Kb4 {[%clk 0:00:06.3]}
70... Ka6 {[%clk 0:02:14]} 71. Ka4 {[%clk 0:00:07.8]} 71... Kb7 {[%clk
0:02:15.5]} 72. Ka5 {[%clk 0:00:09.3]} 72... Ka7 {[%clk 0:02:16.8]} 73. Kb4
{[%clk 0:00:10.2]} 73... Kb8 {[%clk 0:02:18.3]} 74. Kc4 {[%clk 0:00:11]} 74...
Kc7 {[%clk 0:02:18.4]} 75. Kd4 {[%clk 0:00:10.5]} 75... Kd7 {[%clk 0:02:12.7]}
76. Ke5 {[%clk 0:00:07.3]} 76... Ke7 {[%clk 0:02:13.9]} 77. Kf5 {[%clk
0:00:08.2]} 77... Kf7 {[%clk 0:02:15.4]} 78. Ke5 {[%clk 0:00:09.3]} 78... Ke7
{[%clk 0:02:16.8]} 79. Kf5 {[%clk 0:00:10.6]} 79... Kf7 {[%clk 0:02:16]} 80. Ke5
{[%clk 0:00:11.9]} 80... Ke7 {[%clk 0:02:17.6]} 81. Kf5 {[%clk 0:00:12.6]} 81...
Kf7 {[%clk 0:02:19.2]} 82. Ke5 {[%clk 0:00:13.4]} 82... Ke7 {[%clk 0:02:20.8]}
83. Kf5 {[%clk 0:00:14.6]} 1/2-1/2

[Event "*** Biggest EVER Titled Tuesday"]
[Site "Chess.com"]
[Date "2018.04.17"]
[Round "5"]
[White "nochewycandy"]
[Black "Alopekos"]
[Result "0-1"]
[WhiteElo "2058"]
[BlackElo "2299"]
[TimeControl "180+2"]
[EndTime "14:10:10 PDT"]
[Termination "Alopekos won by checkmate"]

1. c4 {[%clk 0:03:01.9]} 1... e5 {[%clk 0:03:00.5]} 2. g3 {[%clk 0:03:02.7]}
2... Nc6 {[%clk 0:03:01.2]} 3. Bg2 {[%clk 0:03:03.9]} 3... Bc5 {[%clk
0:03:02.7]} 4. Nc3 {[%clk 0:03:03.3]} 4... a6 {[%clk 0:03:03.2]} 5. e3 {[%clk
0:03:04.1]} 5... d6 {[%clk 0:03:02.1]} 6. Nge2 {[%clk 0:03:04.3]} 6... Ba7
{[%clk 0:03:01.1]} 7. O-O {[%clk 0:03:03.1]} 7... h5 {[%clk 0:03:01.2]} 8. d4
{[%clk 0:02:57.7]} 8... h4 {[%clk 0:03:01.6]} 9. f4 {[%clk 0:02:51.4]} 9... hxg3
{[%clk 0:02:57.7]} 10. hxg3 {[%clk 0:02:53.3]} 10... Bg4 {[%clk 0:01:59]} 11. d5
{[%clk 0:02:51.5]} 11... Nce7 {[%clk 0:01:52.4]} 12. fxe5 {[%clk 0:02:47.5]}
12... Nf5 {[%clk 0:01:34.6]} 13. Qd3 {[%clk 0:02:36]} 13... Qg5 {[%clk
0:01:26.1]} 14. Ne4 {[%clk 0:02:26.3]} 14... Bxe3+ {[%clk 0:00:38]} 15. Bxe3
{[%clk 0:02:26.8]} 15... Qxe3+ {[%clk 0:00:39.9]} 16. Qxe3 {[%clk 0:02:27.8]}
16... Nxe3 {[%clk 0:00:41.8]} 17. Rf2 {[%clk 0:02:09.8]} 17... dxe5 {[%clk
0:00:41.8]} 18. d6 {[%clk 0:02:07]} 18... f5 {[%clk 0:00:34.3]} 19. Nc5 {[%clk
0:01:54.5]} 19... Nxg2 {[%clk 0:00:33.8]} 20. Kxg2 {[%clk 0:01:50.1]} 20... cxd6
{[%clk 0:00:26.6]} 21. Nxb7 {[%clk 0:01:50.9]} 21... Ke7 {[%clk 0:00:17.3]} 22.
Na5 {[%clk 0:01:44.4]} 22... Nf6 {[%clk 0:00:13.1]} 23. Nc3 {[%clk 0:01:42.9]}
23... Rh6 {[%clk 0:00:03.2]} 24. Nc6+ {[%clk 0:01:43.9]} 24... Ke6 {[%clk
0:00:03.5]} 25. Re1 {[%clk 0:01:39.5]} 25... Rah8 {[%clk 0:00:04.1]} 26. Nd4+
{[%clk 0:01:32.7]} 26... Kd7 {[%clk 0:00:04.2]} 27. Nf3 {[%clk 0:01:32.5]} 27...
Bh3+ {[%clk 0:00:02.8]} 28. Kg1 {[%clk 0:01:32.9]} 28... Bg4 {[%clk 0:00:04.1]}
29. Nh2 {[%clk 0:01:33.5]} 29... Bh3 {[%clk 0:00:03.6]} 30. c5 {[%clk
0:01:32.3]} 30... e4 {[%clk 0:00:02.9]} 31. cxd6 {[%clk 0:01:32.8]} 31... Kxd6
{[%clk 0:00:04.8]} 32. Rd2+ {[%clk 0:01:32.4]} 32... Kc6 {[%clk 0:00:04.7]} 33.
Ne2 {[%clk 0:01:28.9]} 33... Bg4 {[%clk 0:00:04.4]} 34. Nd4+ {[%clk 0:01:27.7]}
34... Kc5 {[%clk 0:00:05]} 35. Nxg4 {[%clk 0:01:29.6]} 35... Rh1+ {[%clk
0:00:05.4]} 36. Kf2 {[%clk 0:01:30]} 36... Nxg4+ {[%clk 0:00:05.8]} 37. Ke2
{[%clk 0:01:31.1]} 37... R8h2+ {[%clk 0:00:06.4]} 38. Kd1 {[%clk 0:01:32.1]}
38... Rxd2+ {[%clk 0:00:02.7]} 39. Kxd2 {[%clk 0:01:32.2]} 39... Rxe1 {[%clk
0:00:04.6]} 40. Nb3+ {[%clk 0:01:33.8]} 40... Kc4 {[%clk 0:00:05.4]} 41. Kxe1
{[%clk 0:01:35.7]} 41... Kd3 {[%clk 0:00:06.3]} 42. Nc5+ {[%clk 0:01:35.9]}
42... Kc2 {[%clk 0:00:07.1]} 43. Nxa6 {[%clk 0:01:36.7]} 43... Kxb2 {[%clk
0:00:07.8]} 44. a4 {[%clk 0:01:38.2]} 44... Ka3 {[%clk 0:00:07.8]} 45. Nc5
{[%clk 0:01:39.3]} 45... Kb4 {[%clk 0:00:08.7]} 46. Ne6 {[%clk 0:01:40.2]} 46...
g6 {[%clk 0:00:06.3]} 47. a5 {[%clk 0:01:38.2]} 47... Kxa5 {[%clk 0:00:07.1]}
48. Nf4 {[%clk 0:01:38.5]} 48... Ne5 {[%clk 0:00:07.6]} 49. g4 {[%clk
0:01:39.2]} 49... Kb4 {[%clk 0:00:05.1]} 50. gxf5 {[%clk 0:01:37.4]} 50... gxf5
{[%clk 0:00:07]} 51. Ke2 {[%clk 0:01:38.4]} 51... Kc4 {[%clk 0:00:04.3]} 52. Ne6
{[%clk 0:01:36]} 52... Nd3 {[%clk 0:00:03.1]} 53. Ke3 {[%clk 0:01:34.5]} 53...
Kd5 {[%clk 0:00:03.9]} 54. Ng5 {[%clk 0:01:30.9]} 54... f4+ {[%clk 0:00:04.1]}
55. Kd2 {[%clk 0:01:32.4]} 55... Ne5 {[%clk 0:00:03]} 56. Ke2 {[%clk 0:01:31.1]}
56... Kd4 {[%clk 0:00:03.5]} 57. Ne6+ {[%clk 0:01:31.5]} 57... Kc4 {[%clk
0:00:04.6]} 58. Nxf4 {[%clk 0:01:33.4]} 58... Ng4 {[%clk 0:00:05.8]} 59. Ng2
{[%clk 0:01:31.9]} 59... Kd4 {[%clk 0:00:06.8]} 60. Kd2 {[%clk 0:01:31]} 60...
Ne5 {[%clk 0:00:07.4]} 61. Ke2 {[%clk 0:01:31.9]} 61... Nf3 {[%clk 0:00:08.3]}
62. Kf2 {[%clk 0:01:26.4]} 62... Kd3 {[%clk 0:00:08.8]} 63. Ne3 {[%clk
0:01:26.4]} 63... Ne5 {[%clk 0:00:07.8]} 64. Nf5 {[%clk 0:01:23]} 64... Kd2
{[%clk 0:00:07.2]} 65. Ne3 {[%clk 0:01:22.2]} 65... Nd3+ {[%clk 0:00:06.7]} 66.
Kf1 {[%clk 0:01:21.2]} 66... Kxe3 {[%clk 0:00:08.6]} 67. Kg1 {[%clk 0:01:22.5]}
67... Kd2 {[%clk 0:00:09.3]} 68. Kg2 {[%clk 0:01:24.1]} 68... e3 {[%clk
0:00:11.2]} 69. Kf3 {[%clk 0:01:25.5]} 69... e2 {[%clk 0:00:13.1]} 70. Kg2
{[%clk 0:01:27.4]} 70... e1=Q {[%clk 0:00:15]} 71. Kh2 {[%clk 0:01:29]} 71...
Qf2+ {[%clk 0:00:15.1]} 72. Kh1 {[%clk 0:01:30.5]} 72... Qf3+ {[%clk 0:00:14.4]}
73. Kh2 {[%clk 0:01:31.8]} 73... Nf4 {[%clk 0:00:15]} 74. Kg1 {[%clk 0:01:33.7]}
74... Qg2# {[%clk 0:00:16.9]} 0-1

[Event "*** Biggest EVER Titled Tuesday"]
[Site "Chess.com"]
[Date "2018.04.17"]
[Round "5"]
[White "DrStephenStrange"]
[Black "Blackmind96"]
[Result "0-1"]
[WhiteElo "1892"]
[BlackElo "2543"]
[TimeControl "180+2"]
[EndTime "14:10:13 PDT"]
[Termination "Blackmind96 won on time"]

1. Nf3 {[%clk 0:03:01.9]} 1... Nf6 {[%clk 0:02:58.5]} 2. c4 {[%clk 0:03:02.2]}
2... d6 {[%clk 0:02:59]} 3. Nc3 {[%clk 0:03:01.4]} 3... Nbd7 {[%clk 0:03:00.8]}
4. d4 {[%clk 0:03:01.6]} 4... e5 {[%clk 0:03:02.7]} 5. e4 {[%clk 0:03:00.2]}
5... Be7 {[%clk 0:03:03.4]} 6. Be2 {[%clk 0:03:00.8]} 6... O-O {[%clk
0:03:03.8]} 7. O-O {[%clk 0:03:02.3]} 7... exd4 {[%clk 0:03:04]} 8. Nxd4 {[%clk
0:03:02.6]} 8... Re8 {[%clk 0:03:05.9]} 9. Re1 {[%clk 0:03:03]} 9... Bf8 {[%clk
0:03:06.6]} 10. Bf1 {[%clk 0:03:04.2]} 10... c6 {[%clk 0:03:07.9]} 11. Nf5
{[%clk 0:03:03.5]} 11... Nc5 {[%clk 0:03:08.3]} 12. Qf3 {[%clk 0:02:57.8]} 12...
Bxf5 {[%clk 0:02:36.8]} 13. Qxf5 {[%clk 0:02:57.4]} 13... g6 {[%clk 0:02:34.6]}
14. Qf3 {[%clk 0:02:56.5]} 14... a5 {[%clk 0:02:32]} 15. Bg5 {[%clk 0:02:49.8]}
15... Be7 {[%clk 0:02:31]} 16. Rad1 {[%clk 0:02:47]} 16... Ne6 {[%clk
0:02:31.5]} 17. Bxf6 {[%clk 0:02:40.4]} 17... Bxf6 {[%clk 0:02:32]} 18. e5
{[%clk 0:02:40.7]} 18... Bg7 {[%clk 0:02:18.3]} 19. exd6 {[%clk 0:02:27.9]}
19... Qb6 {[%clk 0:02:11.7]} 20. b3 {[%clk 0:02:19.3]} 20... Rad8 {[%clk
0:02:10.6]} 21. Ne4 {[%clk 0:02:18.3]} 21... Qb4 {[%clk 0:01:20.4]} 22. d7
{[%clk 0:01:30.1]} 22... Re7 {[%clk 0:01:12.2]} 23. Nf6+ {[%clk 0:01:30.8]}
23... Bxf6 {[%clk 0:01:08.1]} 24. Qxf6 {[%clk 0:01:31.2]} 24... Rexd7 {[%clk
0:00:51.6]} 25. Rxd7 {[%clk 0:01:26.9]} 25... Rxd7 {[%clk 0:00:53.2]} 26. Qe5
{[%clk 0:01:13.3]} 26... Qc5 {[%clk 0:00:48.6]} 27. Qc3 {[%clk 0:00:38.9]} 27...
b6 {[%clk 0:00:39.6]} 28. g3 {[%clk 0:00:36.3]} 28... Qd4 {[%clk 0:00:35.3]} 29.
Qxd4 {[%clk 0:00:31.6]} 29... Nxd4 {[%clk 0:00:35.4]} 30. Bg2 {[%clk 0:00:31.9]}
30... Kf8 {[%clk 0:00:27.1]} 31. Kf1 {[%clk 0:00:32.5]} 31... Nc2 {[%clk
0:00:16.5]} 32. Rc1 {[%clk 0:00:31.2]} 32... Nd4 {[%clk 0:00:15.4]} 33. c5
{[%clk 0:00:27]} 33... b5 {[%clk 0:00:16.4]} 34. Re1 {[%clk 0:00:24.2]} 34...
Re7 {[%clk 0:00:16.3]} 35. Rd1 {[%clk 0:00:20.5]} 35... Ne6 {[%clk 0:00:15.6]}
36. Bxc6 {[%clk 0:00:20.7]} 36... Nxc5 {[%clk 0:00:16.9]} 37. Bxb5 {[%clk
0:00:21]} 37... Ne4 {[%clk 0:00:18]} 38. Bc4 {[%clk 0:00:19.6]} 38... Rc7 {[%clk
0:00:17.3]} 39. Re1 {[%clk 0:00:19.2]} 39... Nd2+ {[%clk 0:00:17.6]} 40. Ke2
{[%clk 0:00:11.9]} 40... Nxc4 {[%clk 0:00:18.7]} 41. bxc4 {[%clk 0:00:12.6]}
41... Rxc4 {[%clk 0:00:20.6]} 42. Kd3 {[%clk 0:00:12.5]} 42... Ra4 {[%clk
0:00:21.5]} 43. Re2 {[%clk 0:00:12.1]} 43... h5 {[%clk 0:00:21.1]} 44. h4 {[%clk
0:00:11.5]} 44... Ra3+ {[%clk 0:00:21.4]} 45. Kc4 {[%clk 0:00:11.6]} 45... Kg7
{[%clk 0:00:21]} 46. Kb5 {[%clk 0:00:11.2]} 46... Kf6 {[%clk 0:00:22.2]} 47. Kc4
{[%clk 0:00:06.4]} 47... Kf5 {[%clk 0:00:22.9]} 48. Kd5 {[%clk 0:00:07.3]} 48...
f6 {[%clk 0:00:23.8]} 49. Kd6 {[%clk 0:00:07.6]} 49... g5 {[%clk 0:00:23.2]} 50.
hxg5 {[%clk 0:00:06.4]} 50... fxg5 {[%clk 0:00:25.1]} 51. Kd5 {[%clk 0:00:03.7]}
51... h4 {[%clk 0:00:25.3]} 52. gxh4 {[%clk 0:00:02.4]} 52... gxh4 {[%clk
0:00:27.2]} 0-1

[Event "*** Biggest EVER Titled Tuesday"]
[Site "Chess.com"]
[Date "2018.04.17"]
[Round "5"]
[White "Cocaino74"]
[Black "leclash"]
[Result "1-0"]
[WhiteElo "2153"]
[BlackElo "2327"]
[TimeControl "180+2"]
[EndTime "14:10:23 PDT"]
[Termination "Cocaino74 won by resignation"]

1. e4 {[%clk 0:03:01]} 1... e5 {[%clk 0:03:00.3]} 2. Nc3 {[%clk 0:03:00.7]} 2...
Nf6 {[%clk 0:03:00.5]} 3. g3 {[%clk 0:03:01.1]} 3... d5 {[%clk 0:03:00.6]} 4.
exd5 {[%clk 0:03:02.4]} 4... Nxd5 {[%clk 0:03:02.5]} 5. Bg2 {[%clk 0:03:03.8]}
5... Nxc3 {[%clk 0:03:02.1]} 6. bxc3 {[%clk 0:03:05.7]} 6... Nc6 {[%clk
0:02:59.7]} 7. Ne2 {[%clk 0:03:05]} 7... Be7 {[%clk 0:02:55.1]} 8. O-O {[%clk
0:03:05.7]} 8... O-O {[%clk 0:02:55.4]} 9. d4 {[%clk 0:03:05.5]} 9... exd4
{[%clk 0:02:44.9]} 10. cxd4 {[%clk 0:03:07.4]} 10... Bf6 {[%clk 0:02:38.1]} 11.
c3 {[%clk 0:03:05.6]} 11... Re8 {[%clk 0:02:32.5]} 12. h3 {[%clk 0:02:57.8]}
12... Rb8 {[%clk 0:02:21.6]} 13. a4 {[%clk 0:02:49.6]} 13... Na5 {[%clk
0:02:18.1]} 14. Nf4 {[%clk 0:02:25.9]} 14... b6 {[%clk 0:02:10.7]} 15. Re1
{[%clk 0:02:06.6]} 15... Rxe1+ {[%clk 0:02:09.1]} 16. Qxe1 {[%clk 0:02:08.5]}
16... Nb3 {[%clk 0:02:10]} 17. Rb1 {[%clk 0:01:43.1]} 17... Nxc1 {[%clk
0:02:10.5]} 18. Qxc1 {[%clk 0:01:36.8]} 18... Bd7 {[%clk 0:01:58.1]} 19. Nd5
{[%clk 0:01:30.9]} 19... Bxa4 {[%clk 0:01:39]} 20. Ra1 {[%clk 0:00:57.5]} 20...
Bc6 {[%clk 0:01:37.6]} 21. Nxf6+ {[%clk 0:00:39.7]} 21... Qxf6 {[%clk
0:01:39.5]} 22. Rxa7 {[%clk 0:00:40.6]} 22... Bxg2 {[%clk 0:01:36.4]} 23. Kxg2
{[%clk 0:00:41.8]} 23... Qc6+ {[%clk 0:01:32.4]} 24. Kg1 {[%clk 0:00:37.7]}
24... Ra8 {[%clk 0:01:03.5]} 25. Rxa8+ {[%clk 0:00:35.7]} 25... Qxa8 {[%clk
0:01:05.4]} 26. Qf4 {[%clk 0:00:29.8]} 26... Qa1+ {[%clk 0:01:04.5]} 27. Kh2
{[%clk 0:00:30]} 27... Qxc3 {[%clk 0:01:05.2]} 28. Qe5 {[%clk 0:00:28.6]} 28...
h6 {[%clk 0:00:49.9]} 29. Qe8+ {[%clk 0:00:27]} 29... Kh7 {[%clk 0:00:50.9]} 30.
Qxf7 {[%clk 0:00:17.9]} 30... Qc2 {[%clk 0:00:49.3]} 31. g4 {[%clk 0:00:05.5]}
31... b5 {[%clk 0:00:46.7]} 32. Qf8 {[%clk 0:00:05.8]} 32... Qc6 {[%clk
0:00:29.5]} 33. Qf5+ {[%clk 0:00:05.8]} 33... Kg8 {[%clk 0:00:29.7]} 34. Qc8+
{[%clk 0:00:04.5]} 34... Kf7 {[%clk 0:00:30.6]} 35. Qf5+ {[%clk 0:00:05.8]}
35... Ke7 {[%clk 0:00:21.2]} 36. Qe5+ {[%clk 0:00:05.3]} 36... Kf8 {[%clk
0:00:22.3]} 37. Qf5+ {[%clk 0:00:05.7]} 37... Kg8 {[%clk 0:00:23]} 38. Qc8+
{[%clk 0:00:04.4]} 38... Kf7 {[%clk 0:00:24]} 39. Qf5+ {[%clk 0:00:05.8]} 39...
Ke7 {[%clk 0:00:25.3]} 40. Qe5+ {[%clk 0:00:06.9]} 40... Kd8 {[%clk 0:00:24.1]}
41. Kg1 {[%clk 0:00:04.6]} 41... b4 {[%clk 0:00:20.8]} 42. Qxg7 {[%clk
0:00:03.8]} 42... Qd6 {[%clk 0:00:18.2]} 43. Qg8+ {[%clk 0:00:04.1]} 43... Kd7
{[%clk 0:00:19.4]} 44. Qf7+ {[%clk 0:00:04.4]} 44... Kc6 {[%clk 0:00:20.6]} 45.
Qc4+ {[%clk 0:00:05.1]} 45... Kb6 {[%clk 0:00:21.8]} 46. Kf1 {[%clk 0:00:05.4]}
46... c5 {[%clk 0:00:21.6]} 47. dxc5+ {[%clk 0:00:05.7]} 47... Qxc5 {[%clk
0:00:23.5]} 48. Qe6+ {[%clk 0:00:05.4]} 48... Ka5 {[%clk 0:00:21.7]} 49. Qa2+
{[%clk 0:00:04.7]} 49... Kb5 {[%clk 0:00:22.7]} 50. Ke2 {[%clk 0:00:04.5]} 50...
Qc4+ {[%clk 0:00:14.8]} 51. Qxc4+ {[%clk 0:00:05.2]} 51... Kxc4 {[%clk
0:00:16.7]} 52. Kd2 {[%clk 0:00:05.1]} 52... Kb3 {[%clk 0:00:17.6]} 53. f4
{[%clk 0:00:03.2]} 53... Ka2 {[%clk 0:00:18.7]} 54. g5 {[%clk 0:00:03.1]} 54...
hxg5 {[%clk 0:00:19]} 55. fxg5 {[%clk 0:00:05]} 55... b3 {[%clk 0:00:20.4]} 56.
g6 {[%clk 0:00:06.6]} 56... b2 {[%clk 0:00:21.8]} 57. g7 {[%clk 0:00:08]} 57...
b1=Q {[%clk 0:00:22.7]} 58. g8=Q+ {[%clk 0:00:08.9]} 1-0

[Event "*** Biggest EVER Titled Tuesday"]
[Site "Chess.com"]
[Date "2018.04.17"]
[Round "5"]
[White "dretch"]
[Black "LyonBeast"]
[Result "0-1"]
[WhiteElo "2689"]
[BlackElo "2837"]
[TimeControl "180+2"]
[EndTime "14:10:26 PDT"]
[Termination "LyonBeast won by resignation"]

1. d4 {[%clk 0:03:01.9]} 1... Nf6 {[%clk 0:02:59.9]} 2. c4 {[%clk 0:03:03.1]}
2... g6 {[%clk 0:03:00]} 3. Nc3 {[%clk 0:03:04.4]} 3... d5 {[%clk 0:02:58.6]} 4.
e3 {[%clk 0:03:05.7]} 4... Bg7 {[%clk 0:02:59]} 5. Qa4+ {[%clk 0:03:06.9]} 5...
c6 {[%clk 0:02:57.8]} 6. cxd5 {[%clk 0:03:07.5]} 6... Nxd5 {[%clk 0:02:59.7]} 7.
Nf3 {[%clk 0:03:08.7]} 7... O-O {[%clk 0:02:59.9]} 8. Be2 {[%clk 0:03:10.1]}
8... Nd7 {[%clk 0:02:54.8]} 9. O-O {[%clk 0:03:05.5]} 9... N7b6 {[%clk 0:02:52]}
10. Qc2 {[%clk 0:02:43.6]} 10... a5 {[%clk 0:02:52.4]} 11. e4 {[%clk 0:02:37.3]}
11... Nb4 {[%clk 0:02:52.4]} 12. Qd1 {[%clk 0:02:37.5]} 12... Bg4 {[%clk
0:02:53]} 13. Be3 {[%clk 0:02:37.2]} 13... Bxf3 {[%clk 0:02:54.1]} 14. Bxf3
{[%clk 0:02:35.5]} 14... Nc4 {[%clk 0:02:53.8]} 15. e5 {[%clk 0:02:37]} 15...
Nxe3 {[%clk 0:02:47]} 16. fxe3 {[%clk 0:02:38]} 16... e6 {[%clk 0:02:47.4]} 17.
Ne4 {[%clk 0:02:25.9]} 17... Nd5 {[%clk 0:02:42.3]} 18. Qd2 {[%clk 0:02:21.2]}
18... f6 {[%clk 0:02:31.8]} 19. exf6 {[%clk 0:02:18.3]} 19... Nxf6 {[%clk
0:02:33.7]} 20. Nc5 {[%clk 0:02:18.3]} 20... Qe7 {[%clk 0:02:33.2]} 21. Qc3
{[%clk 0:02:00.9]} 21... Nd5 {[%clk 0:02:30.5]} 22. Qb3 {[%clk 0:01:56.3]} 22...
a4 {[%clk 0:02:02.5]} 23. Qd3 {[%clk 0:01:57.3]} 23... b6 {[%clk 0:01:59.1]} 24.
Ne4 {[%clk 0:01:55.4]} 24... e5 {[%clk 0:01:59.8]} 25. Nc3 {[%clk 0:01:54]}
25... Nb4 {[%clk 0:01:39.4]} 26. Qc4+ {[%clk 0:01:54.3]} 26... Kh8 {[%clk
0:01:40.5]} 27. Rad1 {[%clk 0:01:44.5]} 27... b5 {[%clk 0:01:25.7]} 28. Qc5
{[%clk 0:01:31.9]} 28... Qxc5 {[%clk 0:01:26.2]} 29. dxc5 {[%clk 0:01:33.8]}
29... a3 {[%clk 0:01:27.8]} 30. Rb1 {[%clk 0:01:27.7]} 30... Bh6 {[%clk
0:01:22.1]} 31. bxa3 {[%clk 0:01:05.9]} 31... Bxe3+ {[%clk 0:01:22.1]} 32. Kh1
{[%clk 0:01:07.3]} 32... Nd3 {[%clk 0:01:15.5]} 33. Bxc6 {[%clk 0:00:58.4]}
33... Rxf1+ {[%clk 0:01:16.2]} 34. Rxf1 {[%clk 0:00:58.7]} 34... Rxa3 {[%clk
0:01:17.6]} 35. Nd1 {[%clk 0:00:46.3]} 35... Bxc5 {[%clk 0:01:11.8]} 36. Bxb5
{[%clk 0:00:47.2]} 36... e4 {[%clk 0:01:08.4]} 37. Bxd3 {[%clk 0:00:15.6]} 37...
Rxd3 {[%clk 0:01:08.7]} 38. Nb2 {[%clk 0:00:12.8]} 38... Rd4 {[%clk 0:00:59.6]}
39. g3 {[%clk 0:00:10.8]} 39... Kg7 {[%clk 0:00:49.9]} 40. Rd1 {[%clk 0:00:05]}
40... Rb4 {[%clk 0:00:47.2]} 41. Rd2 {[%clk 0:00:04.1]} 41... Kf6 {[%clk
0:00:41.1]} 42. Kg2 {[%clk 0:00:04.3]} 42... Bd4 {[%clk 0:00:41.2]} 43. Nd1
{[%clk 0:00:04.7]} 43... Ke5 {[%clk 0:00:38.6]} 44. Re2 {[%clk 0:00:04.1]} 44...
Rb1 {[%clk 0:00:18.8]} 45. Nf2 {[%clk 0:00:04.8]} 45... e3 {[%clk 0:00:20]} 46.
Ng4+ {[%clk 0:00:04.6]} 46... Ke4 {[%clk 0:00:20.9]} 47. Nf2+ {[%clk 0:00:05.9]}
47... Kf5 {[%clk 0:00:19.8]} 48. Nd3 {[%clk 0:00:07.2]} 48... Rd1 {[%clk
0:00:18.8]} 49. Ne1 {[%clk 0:00:07.3]} 49... Ke4 {[%clk 0:00:18.4]} 50. Nf3
{[%clk 0:00:05.9]} 50... Bf6 {[%clk 0:00:16.8]} 51. Re1 {[%clk 0:00:03.5]} 51...
Rd5 {[%clk 0:00:15.3]} 52. Re2 {[%clk 0:00:03.8]} 52... g5 {[%clk 0:00:14.7]}
53. Ne1 {[%clk 0:00:04.6]} 53... g4 {[%clk 0:00:15.1]} 54. h3 {[%clk 0:00:05.8]}
54... h5 {[%clk 0:00:15.7]} 55. hxg4 {[%clk 0:00:07.2]} 55... hxg4 {[%clk
0:00:17.6]} 56. Kf1 {[%clk 0:00:08.3]} 56... Bc3 {[%clk 0:00:17.1]} 57. Ng2
{[%clk 0:00:08.3]} 57... Rd1+ {[%clk 0:00:17.6]} 58. Ne1 {[%clk 0:00:08.7]}
58... Bd2 {[%clk 0:00:18.4]} 59. a3 {[%clk 0:00:09.2]} 59... Ra1 {[%clk
0:00:19.3]} 60. a4 {[%clk 0:00:09.7]} 60... Rb1 {[%clk 0:00:19.6]} 61. a5 {[%clk
0:00:09.7]} 61... Bxa5 {[%clk 0:00:20.2]} 0-1